Cogmind - Beta 11.1 @@@ ROGUE MODE // 2022.08.29 @ 15:37:21 Player: HeartGrenade Result: Destroyed by D-53 Grenadier with Mini Grenade Launcher Performance ------------- Evolutions (1) 500 Regions Visited (4) 800 Robots Destroyed (49) 245 Value Destroyed (1069) 1069 Prototype IDs (2) 40 Alien Tech Used (0) 0 Bonus (24) 24 TOTAL SCORE: 2678 Bonus ------- High Alert Combat Kills 24 Cogmind --------- Core Integrity 0/400 Matter 286/300 Energy 100/100 System Corruption 0% Temperature Cool (0) Movement Core (200) Ox3 Location -9/Mines Parts ------- > --- POWER (1) -------- (None) > --- PROPULSION (3) --- (None) > --- UTILITY (3) ------ Medium Storage Unit Improved Targeting Computer > --- WEAPON (2) ------- Mace > --- INVENTORY (10) --- Ion Engine Improved Treads Armored Wheel Armored Wheel High-capacity Battery (250) Terrain Scanner Light Assault Rifle Grenade Launcher Grenade Launcher Peak State ------------ > --- POWER ------------ Heavy Ion Engine > --- PROPULSION ------- Improved Treads Improved Treads Improved Aluminum Leg > --- UTILITY ---------- Improved Heat Sink Medium Storage Unit Improved Targeting Computer > --- WEAPON ----------- Improved Medium Laser Mace > --- INVENTORY -------- Ion Engine Improved Treads Armored Wheel Armored Wheel High-capacity Battery Terrain Scanner Improved Medium Laser Light Assault Rifle Grenade Launcher Grenade Launcher [Rating: 21] Favorites ----------- Power Ion Engine Engine Ion Engine Propulsion Light Treads Treads Light Treads Leg Improved Aluminum Leg Utility Medium Storage Unit Device Improved Heat Sink Storage Medium Storage Unit Processor Improved Targeting Computer Protection Utility Shielding Weapon Light Assault Rifle Energy Gun Medium Laser Ballistic Gun Light Assault Rifle Launcher Grenade Launcher Impact Weapon Mace Build | -11 -10 -10 -9 -9 ------- Run | Scr Mat Min Mat Min Slots Evolved 2 | . . . 2 . Power . | . . . . . Propulsion 1 | . . . 1 . Utility 1 | . . . 1 . Weapon . | . . . . . Parts Attached 39 | 6 11 5 14 3 Power 5 | 1 2 1 1 . Engine 5 | 1 2 1 1 . Core . | . . . . . Reactor . | . . . . . Propulsion 9 | 2 1 . 6 . Treads 8 | 2 1 . 5 . Leg 1 | . . . 1 . Wheel . | . . . . . Hover . | . . . . . Flight . | . . . . . Utility 8 | 1 5 1 1 . Device 3 | . 2 1 . . Storage 2 | 1 1 . . . Processor 1 | . . . 1 . Hackware . | . . . . . Protection 2 | . 2 . . . Artifact . | . . . . . Weapon 17 | 2 3 3 6 3 Energy Gun 8 | 2 1 1 3 1 Energy Cannon . | . . . . . Ballistic Gun 3 | . 1 1 1 . Ballistic Cannon . | . . . . . Launcher 4 | . 1 1 1 1 Special Weapon . | . . . . . Impact Weapon 2 | . . . 1 1 Slashing Weapon . | . . . . . Piercing Weapon . | . . . . . Special Melee Weapon . | . . . . . Unidentified Prototypes 2 | . . . 2 . Parts Lost 12 | . . 1 4 7 Power 2 | . . 1 . 1 Propulsion 6 | . . . 3 3 Utility 1 | . . . . 1 Weapon 3 | . . . 1 2 Highest Loss Streak 7 | . . 1 1 7 To Critical Strikes . | . . . . . Average Slot Usage (%) 98 | . 99 100 95 95 Engine 12 | . 14 14 11 10 Treads 27 | . 28 28 28 20 Leg 1 | . . . 1 10 Device 10 | . 6 14 11 9 Storage 12 | . 14 14 11 11 Processor 3 | . . . 10 11 Protection 1 | . 6 . . . Energy Gun 13 | . 21 9 10 10 Ballistic Gun 9 | . 6 14 9 . Launcher 1 | . . 4 . . Impact Weapon 1 | . . . 1 10 Naked Turns . | . . . . . Heaviest Build 25 | 12 19 20 25 24 Greatest Support 66 | 40 40 40 66 46 Greatest Overweight (x) 4 | . . . . 4 Average Overweight (x) . | . . . . . Largest Inventory Capacity 10 | 8 10 10 10 10 Average Capacity 9 | 6 8 10 10 10 Most Carried 10 | 5 10 10 10 10 Average Carried 8 | 2 6 9 9 9 Final Capacity 10 | 8 10 10 10 10 Final Carried 10 | 1 10 10 10 9 Class Distribution -------------------- 62% | Mutant 37% | Scavenger-Mutant Dominant Class ---------------- Mutant | -10/Materials Scavenger-Mutant | -10/Mines Mutant | -9/Materials Mutant | -9/Mines Resources | -11 -10 -10 -9 -9 ----------- Run | Scr Mat Min Mat Min Matter Collected 737 | 209 192 58 247 31 Remotely . | . . . . . Salvage Created 1508 | . 502 168 756 82 Parts 97 | . 32 12 53 . Haulers Intercepted 3 | . 1 . 2 . Recyclers Shooed 1 | . . . 1 . Parts Field Recycled . | . . . . . Retrieved Matter . | . . . . . Parts Self-Destructed . | . . . . . Prevented . | . . . . . Kills | -11 -10 -10 -9 -9 ------- Run | Scr Mat Min Mat Min Combat Hostiles Destroyed 53 | . 12 7 20 14 Melee 5 | . . . . 5 Guns 34 | . 11 7 15 1 AOE 13 | . . . 5 8 Classes Destroyed 10 | . 6 . 3 1 Builder 3 | . 1 . 2 . Hauler 3 | . 1 . 2 . Recycler 1 | . 1 . . . Operator 1 | . . . 1 . Watcher 2 | . 1 . 1 . Swarmer 18 | . 6 5 7 . Grunt 18 | . 6 2 10 . Brawler 1 | . . . 1 . Sentry 2 | . . . 2 . Assembled 14 | . . . . 14 Best Kill Streak 14 | . 5 3 8 14 Combat Bots Only 14 | . 4 3 6 14 Max Kills in Single Turn 4 | . 2 1 3 4 Gunslinging 1 | . . . 1 . Exploded 4 | . . . 3 4 Melee 1 | . . . . 1 Uniques/NPCs Destroyed . | . . . . . Combat | -11 -10 -10 -9 -9 -------- Run | Scr Mat Min Mat Min Damage Taken 2304 | . 339 300 758 907 Core 527 | . 55 53 122 297 Absorbed by Shields . | . . . . . Redirected to Shielding 6 | . 6 . . . Regen/Repaired (Parts) 65 | . . . 65 . Core Remaining (%) 78 | 100 . 56 . . Volleys Fired 136 | . 41 21 69 5 Largest 2 | . 2 2 2 2 Hottest 100 | . 100 85 85 86 Shots Fired 263 | . 81 39 135 8 Gun 254 | . 80 37 132 5 Cannon . | . . . . . Launcher 9 | . 1 2 3 3 Special . | . . . . . Kinetic 106 | . 21 19 66 . Thermal 148 | . 59 18 66 5 Explosive 9 | . 1 2 3 3 Electromagnetic . | . . . . . Robot Hit Streak 27 | . 5 6 20 27 Robot Miss Streak 3 | . 3 2 2 . Penetration Max . | . . . . . Secondary Targets 6 | . 1 2 3 . Max Gunslinging Chain 1 | . 1 1 1 . Shots Hit Robots 189 | . 49 21 105 14 Core Hits 97 | . 22 9 43 23 Critical Kills 1 | . . . . 1 Critical Parts Destroyed 2 | . . . . 2 Critical Strikes 11 | . 3 2 3 3 Burn 8 | . 3 2 3 . Smash 3 | . . . . 3 Melee Attacks 9 | . . . 1 8 Impact 9 | . . . 1 8 Slashing . | . . . . . Piercing . | . . . . . Sneak Attacks . | . . . . . Combat Hostiles . | . . . . . Follow-up Attacks . | . . . . . Damage Inflicted 3429 | . 629 256 1795 749 Guns 2307 | . 589 256 1374 88 Cannons . | . . . . . Explosions 881 | . 40 . 421 420 Melee 241 | . . . . 241 Ramming . | . . . . . Kinetic 549 | . 90 62 397 . Thermal 1758 | . 499 194 977 88 Explosive 881 | . 40 . 421 420 Electromagnetic . | . . . . . Impact 241 | . . . . 241 Slashing . | . . . . . Piercing . | . . . . . Highest Corruption . | . . . . . Average Corruption . | . . . . . Corruption Purged . | . . . . . Corruption Blocked . | . . . . . Overload Shots . | . . . . . Overflow Damage 115 | . . . 24 91 Projectiles . | . . . . . Explosions 25 | . . . 24 1 Melee 90 | . . . . 90 Knockbacks . | . . . . . Impact . | . . . . . Kinetic . | . . . . . Secondary . | . . . . . Self-Inflicted Damage 122 | . . 22 . 100 Shots 4 | . . 1 . 3 Rammed . | . . . . . Targets Rammed . | . . . . . Kicked . | . . . . . Crushed . | . . . . . Highest Temperature 240 | . 240 32 33 74 Average Temperature 45 | . 88 14 6 32 Received Heat Transfer 605 | . 132 63 270 140 Siege Activations . | . . . . . Robots Corrupted . | . . . . . Combat Hostiles . | . . . . . Parts Fried . | . . . . . Impact Corruptions 3 | . . . . 3 Robots Melted 1 | . 1 . . . Combat Hostiles 1 | . 1 . . . Parts Melted 14 | . 3 1 10 . Heat Transferred 4773 | . 1665 629 2294 185 Parts Sabotaged . | . . . . . Parts Stolen . | . . . . . Parts Stripped . | . . . . . Power Chain Reactions . | . . . . . Missiles Intercepted . | . . . . . Alert | -11 -10 -10 -9 -9 ------- Run | Scr Mat Min Mat Min Peak Influence 486 | . 308 272 486 229 Initial 189 | . . 97 10 189 Average 170 | . 146 125 252 192 Maximum Alert Level 2 | . 1 1 2 1 Low Security (%) 64 | 100 64 73 46 87 Level 1 25 | . 35 26 20 12 Level 2 9 | . . . 32 . Level 3 . | . . . . . Level 4 . | . . . . . Level 5 . | . . . . . High Security . | . . . . . Max Security . | . . . . . Squads Dispatched 5 | . 3 . 2 . Investigation 1 | . 1 . . . Extermination . | . . . . . Reinforcement 4 | . 2 . 2 . Assault . | . . . . . Garrison . | . . . . . Intercept . | . . . . . Searches Triggered . | . . . . . Construction Impeded 1 | . . . 1 . Haulers Reinforced . | . . . . . Active Scanning Responses . | . . . . . Cargo Convoy Interrupts . | . . . . . Stealth | -11 -10 -10 -9 -9 --------- Run | Scr Mat Min Mat Min Distress Signals 7 | . 2 . 5 . Communications Jammed . | . . . . . Distress Signals . | . . . . . Times Spotted 80 | . 16 9 34 21 Peak Tracking Total 10 | . 5 3 7 10 Tactical Retreats 2 | . . 1 . 1 Traps | -11 -10 -10 -9 -9 ------- Run | Scr Mat Min Mat Min Traps Triggered 1 | . 1 . . . Indirectly . | . . . . . Trap Hack Attempts . | . . . . . Triggered . | . . . . . Disarmed . | . . . . . Reprogrammed . | . . . . . Reused . | . . . . . Traps Extracted . | . . . . . Installed . | . . . . . Triggered . | . . . . . Machines | -11 -10 -10 -9 -9 ---------- Run | Scr Mat Min Mat Min Machines Disabled 5 | . . 1 4 . Max in Single Turn 2 | . . 1 2 . Machines Sabotaged . | . . . . . Garrisons Compromised . | . . . . . Overloaded Fab Kills . | . . . . . Hacking | -11 -10 -10 -9 -9 --------- Run | Scr Mat Min Mat Min Machines Accessed 8 | . 4 . 4 . Terminals 5 | . 3 . 2 . Fabricators . | . . . . . Repair Stations 1 | . . . 1 . Recycling Units 1 | . 1 . . . Scanalyzers 1 | . . . 1 . Garrison Access . | . . . . . Total Hacks 19 | . 8 . 11 . Successful 12 | . 4 . 8 . Failed 7 | . 4 . 3 . Catastrophic . | . . . . . Database Lockouts . | . . . . . Manual 9 | . 6 . 3 . Terminals 11 | . 7 . 4 . Fabricators . | . . . . . Repair Stations 3 | . . . 3 . Recycling Units 1 | . 1 . . . Scanalyzers 4 | . . . 4 . Garrison Access . | . . . . . Terminal Hacks 5 | . 3 . 2 . Part Schematic 1 | . . . 1 . Robot Analysis 2 | . 2 . . . Branch Access Points 1 | . 1 . . . Hauler Manifests 1 | . . . 1 . Fabricator Hacks . | . . . . . Repair Station Hacks 2 | . . . 2 . Scan Component 1 | . . . 1 . Repair 1 | . . . 1 . Recycling Unit Hacks . | . . . . . Scanalyzer 4 | . . . 4 . Insert Component 2 | . . . 2 . Analyze 2 | . . . 2 . Garrison Access Hacks . | . . . . . Unauthorized Hacks 1 | . 1 . . . Terminals . | . . . . . Fabricators . | . . . . . Repair Stations . | . . . . . Recycling Units 1 | . 1 . . . Tunnel 1 | . 1 . . . Scanalyzers . | . . . . . Garrison Access . | . . . . . Data Cores Recovered 1 | . . . 1 . Used . | . . . . . Hacking Detections 3 | . 2 . 1 . Full Trace Events . | . . . . . Feedback Events . | . . . . . Feedback Blocked . | . . . . . Robot Schematics Acquired . | . . . . . Robots Built . | . . . . . Authchips . | . . . . . Time . | . . . . . Total Robot Build Rating . | . . . . . Part Schematics Acquired 3 | . . . 3 . Parts Built . | . . . . . Authchips . | . . . . . Time . | . . . . . Total Part Build Rating . | . . . . . Parts Repaired 1 | . . . 1 . Time 26 | . . . 26 . Parts Recycled . | . . . . . Recycled Matter . | . . . . . Retrieved Matter . | . . . . . Retrieved Components . | . . . . . Parts Scanalyzed 2 | . . . 2 . Part Schematics Acquired 2 | . . . 2 . Parts Damaged . | . . . . . Bothacking | -11 -10 -10 -9 -9 ------------ Run | Scr Mat Min Mat Min Used RIF Installer . | . . . . . Robots Hacked . | . . . . . Non-combat . | . . . . . Combat . | . . . . . Robot Hacks Applied . | . . . . . Relay Couplers Released . | . . . . . Fabnet Peak Effective % . | . . . . . Robots Rewired . | . . . . . Allies Hacked . | . . . . . Hacks Repelled . | . . . . . Allies | -11 -10 -10 -9 -9 -------- Run | Scr Mat Min Mat Min Total Allies . | . . . . . Largest Group . | . . . . . Highest-Rated Group . | . . . . . Highest-Rated Ally . | . . . . . Total Orders . | . . . . . Ally Attacks . | . . . . . Total Damage . | . . . . . Kills . | . . . . . Allies Corrupted . | . . . . . Allies Melted . | . . . . . Intel | -11 -10 -10 -9 -9 ------- Run | Scr Mat Min Mat Min Robot Analysis Total 2 | . 2 . . . Derelict Logs Recovered 2 | . . 2 . . Drone Launches . | . . . . . Drone Recoveries . | . . . . . Exploration | -11 -10 -10 -9 -9 ------------- Run | Scr Mat Min Mat Min Turns Passed 2656 | 52 759 885 765 195 Spaces Moved 1312 | 35 371 511 298 97 Core 17 | 15 . . . 2 Treads 1295 | 20 371 511 298 95 Legs . | . . . . . Wheels . | . . . . . Hover . | . . . . . Flight . | . . . . . Fastest Speed 50 | 50 160 160 160 160 Average Speed 158 | 112 160 160 160 161 Slowest Speed 250 | 160 160 160 160 250 Overloaded Moves . | . . . . . Propulsion Burnouts . | . . . . . Robots Hopped . | . . . . . Cave-ins Triggered . | . . . . . Exploration Rate (%) 46 | 4 71 96 33 29 Regions Visited 4 Branch Regions 2 Pre-discovered Areas 1 | . 1 . . . Known Exits Taken 1 | . 1 . . . Unknown Exits Taken 3 | 1 . 1 1 . Scrap Searched 2 | . . 2 . . Spaces Dug 10 | . . 9 1 . Terrain Destroyed 55 | . 12 15 7 21 Melee 1 | . . . 1 . Projectile . | . . . . . AOE 54 | . 12 15 6 21 Terrain Rammed . | . . . . . Walls Destroyed . | . . . . . Machines Disabled . | . . . . . Actions | -11 -10 -10 -9 -9 --------- Run | Scr Mat Min Mat Min Total 1627 | 47 458 544 465 113 Wait 93 | 2 24 4 63 . Move 1308 | 34 370 510 297 97 Hop . | . . . . . Pick Up 22 | 5 8 1 8 . Fast Attach 10 | 2 1 . 7 . Attach 8 | 4 1 1 1 1 Detach 2 | . 1 . 1 . Swap 22 | . 9 4 7 2 Drop 17 | . 3 3 11 . Fire 136 | . 41 21 69 5 Melee 9 | . . . 1 8 Ram . | . . . . . Kick . | . . . . . Crush . | . . . . . Escape Stasis . | . . . . . Rewire . | . . . . . Trap . | . . . . . Miscellaneous . | . . . . . Route ------- -11/Scrapyard -10/Materials (discovered 2 exits: *Mat / *Min) -10/Mines (discovered 2 exits: *Mat x2) -9/Materials -9/Mines History --------- Turn | Location | Event 13 | -11/Scrapyard | Discovered new exit (range 15) 53 | -11/Scrapyard | Entered Materials 317 | -10/Materials | Build established: Mutant 508 | -10/Materials | Discovered new exit (range 6) 633 | -10/Materials | Identified exit to Mines 812 | -10/Materials | Entered Mines 880 | -10/Mines | Learned Materials terminal intel 986 | -10/Mines | Discovered new exit (range 9) 1014 | -10/Mines | Build established: Scavenger-Mutant 1364 | -10/Mines | Discovered new exit (range 9) 1471 | -10/Mines | YI-UF0 nonchalantly dropped a Grenade Launcher on the ground 1481 | -10/Mines | Learned Materials security intel 1697 | -10/Mines | Build established: Mutant 1697 | -10/Mines | Entered Materials 1697 | -9/Materials | Evolved 2 slots: Propulsion x1, Utility x1 1699 | -9/Materials | Loaded intel: 12 terminal locations 2051 | -9/Materials | Build established: Scavenger-Mutant 2320 | -9/Materials | Discovered new exit (range 13) 2359 | -9/Materials | Build established: Mutant 2427 | -9/Materials | Repaired Lgt. Assault Rifle 2462 | -9/Materials | Entered Mines 2590 | -9/Mines | Assembled infested the area 2595 | -9/Mines | Assisted by a Guerilla fighting off Assembled 2645 | -9/Mines | Core integrity fell below 50% 2653 | -9/Mines | Core integrity fell below 20% 2657 | -9/Mines | Destroyed by D-53 Grenadier with Mini Grenade Launcher Last Messages --------------- 02639_ as-39496 destroyed. 02641_ Acquired 10 matter. 02642_ Acquired 2 matter. 02644_ C-30 ARC bursts open, deploying its payload. 02644_ D-53 Grenadier unfolds itself. 02644_ Hvy. Ion Engine destroyed. 02646_ U-05 Engineer lays Concrete. 02646_ as-95639 destroyed. 02648_ U-05 Engineer lays Concrete. 02648_ Imp. Aluminum Leg destroyed. 02648_ as-64856 destroyed. 02649_ U-05 Engineer lays Concrete. 02651_ The unstable cave ceiling collapses. 02652_ U-05 Engineer lays Concrete. 02652_ as-77499 destroyed. 02653_ The unstable cave ceiling collapses. 02653_ Imp. Treads destroyed. 02653_ U-05 Engineer lays Concrete. 02656_ Imp. Medium Laser destroyed. 02657_ U-05 Engineer lays Concrete. Map ----- +----------------------------------------------------+ | ????## #??????????????????????????????????????? | | ???## ##??????????????????????????????????????? | | ???# ##???????????????????????????????????????? | | ??## #????????????????????????????????????????? | | ### #????????????????????????????????????????? | | ##????????????????????????????????????????? | | ##?????????????????????????????????????????? | | ####??????????????????????????????????????????? | | ##?????????????????????????????????????????????? | | ###??????????????????????????????????????????????? | | ?????????????????????????????????????????????????? | | ??????????????? ?????????????????????????????????? | | ##????????????? ????????????????????????????????? | | ##???????????# ????????????????????????????????? | | #?????????## ????????????????????????????????? | | #?????????# ????????????????????????????????? | | #????????## ????????????????????????????????? | | ##???????# ?????????????????????????????????? | | ##??????# ?????????????????????????????????? | | ##????## #????????###??????????????????????? | | #???## % #????##### ###????????????????????? | | ##??# %==%#???## #####????????????????? | | ##?# %=[#???# ####?????????????? | | #?# !"##### ## ????????? | | #??# =%]## # %= #?????????? | | ##?## =% @ < ! #?????????? | | # ##### ! ######????????????? | | ### #### ##?????????????????? | | ??# ### u dd ##??????????????????? | | ??# u # # ####???????????????????? | | ??# # ##??????????????????????? | | ??#### ##???????????????????????? | | ?????# #### # # # ##????????????????????????? | | ?????## ##??##########?????????????????????????? | | ??????#####??????????????????????????????????????? | | ?????????????????????????????????????????????????? | | ?????????????????????????????????????????????????? | | | | | | | | | | | | | | | | | | | | | | | | | | | +----------------------------------------------------+ Best States ------------- Heat Dissipation 42 Energy Generation 14 Energy Capacity 280 Matter Stores 300 Matter Capacity 300 Sight Range 16 Terrain Scan Density 10 Utility Shielding 33 Evasion (%) 50 Targeting Accuracy 6 Recoil Reduction 3 Item Schematics ----------------- Grenade Launcher | -9/Materials | Scanalyzed Arm. Wheel | -9/Materials | Scanalyzed Hcp. Storage Unit | -9/Materials | Hacked Robot Schematics ------------------ None Fabricated ------------ Nothing Alien Tech Used ----------------- None Achievements -------------- None Challenges ------------ None Game ------ Seed CompositeHackingRegenerator Manual? 0 Play Time 00:20:00 Cumulative 160.2 hours Start 2022.08.29 @ 15:08:21 End 2022.08.29 @ 15:37:21 Sessions 1 Manual Loads 0 Difficulty Rogue Special Mode None Game No. 64 Rogue 64 Adventurer 0 Explorer 0 Win Type - Total 5 Types 3/0/1/1/0/0/0/0/0 Lore% 74 Gallery% 70 Achievement% 60 Wizard Run 0 Options --------- ASCII 0 Keyboard 1 Movement Numpad Keybinds 0 Fullscreen 2 Font 18/X11 Map View 76x50 Tactical HUD 1 Map Filters NONE Filters NONE Steam 1 RUN: b078d3d2-545c-45ef-acbd-5565e5c075ce